bitfinex/quotes_ETHUSD_20220201
["timestamp","ask_amount","ask_price","bid_price","bid_amount"]
[1643699224409,0.43052551,2741.3,2740.6,0.15488031]
[1643699224609,0.43052551,2741.3,2740.7,1.0944282]
[1643699224808,2.1824,2742.2,2740.8,0.15488031]
[1643699225108,1.35375895,2742.1,2740.8,0.15488031]
[1643699225307,2.1822,2742.0,2740.8,0.15488031]
[1643699225508,2.4822,2742.0,2740.8,0.15488031]
[1643699225713,0.1822,2742.0,2740.9,0.91203]
[1643699225910,0.01258272,2742.5,2741.0,0.15488031]
[1643699225911,0.34452409,2741.7,2741.0,0.15488031]
[1643699226109,0.34452409,2741.7,2741.0,1.97868031]
[1643699226309,0.34452409,2741.7,2741.1,0.15488031]
[1643699226763,1.17978711,2741.7,2741.1,0.15488031]
[1643699227160,1.17978711,2741.7,2741.2,0.9119]
[1643699227363,1.17978711,2741.7,2741.3,0.15488031]
[1643699228363,1.12978711,2741.7,2741.3,0.15488031]
[1643699228961,0.29452409,2741.7,2741.3,2.07629003]
[1643699229164,0.29452409,2741.7,2741.4,0.15488031]
[1643699229367,0.29452409,2741.7,2741.5,0.15488031]
[1643699229564,0.29452409,2741.7,2741.2,0.9119]
[1643699229764,0.29452409,2741.7,2741.3,0.16586932]
[1643699229964,0.29452409,2741.7,2741.4,0.16586932]
[1643699230165,0.96345567,2741.7,2741.5,0.16586932]
[1643699230366,0.96345567,2741.7,2741.1,1.1822]
[1643699230367,0.96345567,2741.7,2741.1,0.1822]
[1643699230606,0.96345567,2741.7,2741.2,0.15471604]
[1643699232062,0.1822,2741.6,2741.3,0.15471604]
[1643699232208,0.96345567,2741.7,2740.8,1.2194]
[1643699232406,0.31848726,2741.0,2740.9,0.15453654]
[1643699235748,0.3,2742.0,2740.9,0.15453654]
[1643699235949,1.55170567,2741.9,2740.9,1.06659654]
[1643699236164,1.69018847,2742.5,2742.0,2.5178]
[1643699236165,1.92457272,2742.5,2742.0,2.5178]
[1643699236348,8.7487935,2742.4,2742.0,2.5178]
[1643699236553,1.3769635,2742.3,2742.0,0.8780789]
[1643699236753,7.37001,2742.2,2742.0,0.8780789]
[1643699236953,2.51054014,2742.1,2742.0,0.8780789]
[1643699237155,10.10414014,2742.1,2742.0,0.8780789]
[1643699243370,9.80414014,2742.1,2742.0,0.8780789]
[1643699243871,10.10414014,2742.1,2742.0,0.8780789]
[1643699244273,10.06314561,2742.1,2742.0,0.8780789]
[1643699247619,10.06314561,2742.1,2741.2,0.1822]
[1643699247620,3.55,2742.0,2741.2,0.1822]
[1643699247925,3.55,2742.0,2740.6,0.1823]
[1643699247926,0.68969767,2741.5,2740.6,0.1823]
[1643699248117,1.9039635,2741.4,2740.5,0.1822]
[1643699248318,1.3769635,2741.3,2740.6,0.17787986]
[1643699248518,0.67354231,2741.0,2740.7,0.17787986]
[1643699248719,1.77678809,2740.9,2740.8,0.17787986]
[1643699251257,0.39982459,2740.9,2740.8,0.17787986]
[1643699254214,0.67941426,2741.4,2740.8,0.17787986]
[1643699254458,8.67114129,2741.3,2740.9,0.17787986]
[1643699254612,8.67114129,2741.3,2740.6,0.1824]
[1643699254613,1.37754129,2741.2,2741.0,0.17787986]
[1643699254814,1.37754129,2741.2,2741.1,0.17787986]
[1643699255213,0.67941426,2741.4,2741.1,0.17787986]
[1643699255214,1.37754129,2741.3,2741.1,0.17787986]
[1643699255413,1.37754129,2741.2,2740.5,0.1824]
[1643699255617,1.37754129,2741.1,2740.6,0.15063668]
[1643699255815,0.92694284,2740.9,2740.6,0.15063668]
[1643699256215,0.40798964,2740.8,2740.6,0.15063668]
[1643699256616,0.14269589,2740.8,2740.6,0.15063668]
[1643699258859,0.14269589,2740.8,2740.7,0.15063668]
[1643699261898,0.1824,2741.2,2740.7,0.15063668]
[1643699262100,1.38239286,2741.1,2740.8,0.15063668]
[1643699262301,1.38239286,2741.1,2740.9,0.15063668]
[1643699262503,1.38239286,2741.1,2741.0,0.15063668]
[1643699263004,0.36514993,2741.1,2741.0,0.15063668]
[1643699263210,1.14863076,2741.1,2741.0,0.15063668]
[1643699263608,2.53191462,2741.1,2741.0,0.15063668]
[1643699264852,0.1824,2741.4,2741.0,0.15063668]
[1643699265054,4.22599327,2742.1,2740.6,4.74733138]
[1643699265055,0.1824,2741.6,2741.1,0.15063668]
[1643699265253,3.6843,2742.1,2740.8,0.68173013]
[1643699265254,7.2957,2741.5,2741.2,0.15063668]
[1643699265459,7.2957,2741.5,2741.3,0.15063668]
[1643699265663,7.2957,2741.5,2741.4,0.15063668]
[1643699266050,7.2957,2741.5,2741.4,2.08261849]
[1643699266250,7.2957,2741.5,2741.4,3.08261849]
[1643699266654,7.2957,2741.5,2741.4,2.08261849]
[1643699266853,7.2957,2741.5,2741.4,3.08261849]
[1643699267052,7.2957,2741.5,2741.4,1.06250668]
[1643699269109,7.2957,2741.5,2741.4,2.96220502]
[1643699269317,7.1516832,2741.5,2741.4,4.26220502]
[1643699269508,7.1416832,2741.5,2741.4,5.94111005]
[1643699269709,7.1416832,2741.5,2741.4,5.27140502]
[1643699269908,5.0509349,2741.5,2741.4,5.68101916]
[1643699270112,1.58327042,2741.5,2741.4,8.19364953]
[1643699270311,1.58327042,2741.5,2741.4,6.4600648]
[1643699270911,0.1822,2742.9,2741.5,6.6]
[1643699271216,0.1822,2742.6,2742.3,0.91156]
[1643699271411,1.4138533,2742.5,2742.4,0.15063668]
[1643699271609,1.4138533,2742.6,2742.4,0.15063668]
[1643699271853,1.4138533,2742.6,2742.3,0.91156]
[1643699272155,0.68969767,2743.1,2742.3,0.91156]
[1643699272156,0.1822,2743.2,2742.4,2.03420931]
[1643699272350,1.41265689,2743.1,2742.5,0.11400266]
[1643699272553,1.41265689,2743.1,2742.6,0.91141]
[1643699272750,1.41265689,2743.4,2742.7,0.11400266]
[1643699272953,1.41265689,2743.4,2742.7,2.01978901]
[1643699273153,0.37182898,2743.2,2742.8,0.11400266]
[1643699273360,0.37182898,2743.2,2742.9,1.02539736]
[1643699273361,1.41265689,2743.1,2742.9,1.02539736]
[1643699273556,1.41265689,2743.1,2742.9,0.9113947]
[1643699274155,0.1822,2743.5,2742.9,0.9113947]
[1643699274156,1.41265689,2743.0,2742.9,1.8227847]
[1643699274376,0.68969767,2743.7,2742.9,1.8227847]
[1643699274377,0.1822,2743.6,2742.9,1.8227847]
[1643699274559,1.41183371,2743.5,2742.9,1.8227847]
[1643699274756,0.1822,2743.4,2742.9,1.8227847]
[1643699274957,1.41183371,2743.3,2742.9,1.8227847]
[1643699275156,0.40139738,2743.1,2742.9,1.8227847]
[1643699275357,0.1822,2743.2,2742.9,1.8227847]
[1643699275621,0.05983094,2743.0,2742.9,1.8227847]
[1643699275822,0.05983094,2743.0,2742.9,1.93630941]
[1643699276425,0.05983094,2743.0,2742.9,1.8227847]
[1643699276764,0.0508709,2743.0,2742.9,1.8227847]
[1643699277327,0.1822,2743.4,2742.9,4.98667821]
[1643699277628,0.1822,2743.8,2743.1,1.8225481]
[1643699277826,0.68969767,2744.3,2743.2,1.98640126]
[1643699277827,1.4089152,2743.7,2743.2,1.98640126]
[1643699278026,0.1822,2744.2,2743.2,1.98640126]
[1643699278228,1.40889944,2744.1,2743.2,2.98640126]
[1643699278424,0.35555785,2743.5,2743.2,1.0]
[1643699278627,0.35555785,2743.5,2743.1,2.8225481]
[1643699278870,0.35555785,2743.5,2743.1,1.91128]
[1643699279465,0.35555785,2743.5,2743.1,0.91128]
[1643699279663,0.35555785,2743.5,2743.0,1.1708]
[1643699279864,0.35555785,2743.5,2742.9,3.6451351]
[1643699280662,1.40733813,2743.4,2742.9,3.6451351]
[1643699280864,0.1822,2743.3,2742.9,3.6451351]
[1643699281068,0.1822,2743.4,2742.9,3.6451351]
[1643699282468,1.40700591,2743.3,2742.9,3.6451351]
[1643699282665,0.35555785,2743.5,2742.9,3.6451351]
[1643699282869,1.4069868,2743.4,2742.9,3.6451351]
[1643699284312,0.35555785,2743.5,2742.9,3.6451351]
[1643699285114,0.1822,2743.8,2743.0,2.90578685]
[1643699285313,0.1822,2743.8,2743.1,0.911278]
[1643699286113,0.1822,2743.8,2743.2,1.9310411]
[1643699286314,0.1822,2743.8,2743.2,2.04836131]
[1643699286517,0.1822,2744.2,2743.4,0.9111759]
[1643699286770,0.91121,2744.5,2743.5,2.0436664]
[1643699286771,0.1822,2744.4,2743.5,2.0436664]
[1643699286972,1.35886615,2744.3,2743.5,1.94213763]
[1643699287175,0.1822,2744.2,2743.5,1.94213763]
[1643699287575,0.67989963,2744.3,2743.5,1.94213763]
[1643699287777,0.1822,2744.2,2743.5,1.94213763]
[1643699288175,0.1822,2744.2,2743.6,0.91117]
[1643699288379,0.41374954,2743.7,2743.6,0.91117]
[1643699288976,0.1822,2744.2,2743.6,0.91117]
[1643699289182,0.67989963,2744.3,2743.6,0.91117]
[1643699289419,0.1822,2744.2,2743.6,0.91117]
[1643699289582,0.67989963,2744.3,2743.6,0.91117]
[1643699290182,0.43109316,2743.8,2743.6,0.91117]
[1643699290386,0.43109316,2743.8,2743.4,1.0933759]
[1643699290611,0.43109316,2743.8,2743.4,0.1822]
[1643699292219,0.19475368,2744.2,2743.4,0.1822]
[1643699292220,0.1822,2744.2,2743.4,0.1822]
[1643699293019,0.1822,2744.2,2743.5,0.91118]
[1643699293220,0.39079764,2743.7,2743.5,0.91118]
[1643699293619,0.1822,2744.2,2743.5,0.91118]
[1643699294256,0.1822,2744.2,2743.5,2.84922471]
[1643699294458,0.1822,2744.2,2743.5,0.91118]
[1643699295061,0.41590943,2743.8,2743.5,0.91118]
[1643699297070,0.1822,2744.2,2743.6,1.9012112]
[1643699297269,0.67989963,2744.3,2743.6,1.9012112]
[1643699298115,0.35999891,2743.7,2743.5,0.91118]
[1643699298411,0.35999891,2743.7,2743.6,0.1822]
[1643699298611,0.67989963,2744.3,2743.6,0.1822]
[1643699299512,0.67861158,2744.3,2743.6,0.1822]
[1643699299915,0.39456138,2743.8,2743.6,0.1822]
[1643699300116,0.67861158,2744.3,2743.6,0.1822]
[1643699300314,1.65205538,2744.6,2743.6,0.1822]
[1643699300514,8.64513666,2744.5,2743.7,0.9111]
[1643699300716,7.2884,2744.5,2743.7,0.9111]
[1643699301857,1.13856442,2744.4,2743.7,2.77064226]
[1643699302057,0.32899507,2743.8,2743.7,2.77064226]
[1643699302261,0.26090852,2743.8,2743.7,2.77064226]
[1643699303065,7.2884,2744.3,2743.7,3.77064226]
[1643699303266,7.2884,2744.3,2743.8,1.0]
[1643699303465,7.2884,2744.3,2743.9,4.83675697]
[1643699304064,7.2884,2744.3,2744.0,1.0]
[1643699304267,0.42080289,2744.2,2744.1,3.63844218]
[1643699304465,0.42080289,2744.2,2744.1,3.47752723]
[1643699304666,0.42080289,2744.2,2744.1,4.47752723]
[1643699307026,0.42080289,2744.2,2744.1,2.95052723]
[1643699307227,0.37080289,2744.2,2744.1,2.95052723]
[1643699307469,7.2884,2744.3,2744.1,2.95052723]
[1643699307632,7.2884,2744.3,2744.2,1.91316685]
[1643699307827,7.26811895,2744.3,2744.2,1.91316685]
[1643699308833,7.69884564,2744.3,2744.2,1.91316685]
[1643699309033,7.69884564,2744.3,2744.1,1.82174]
[1643699309259,7.69884564,2744.3,2744.2,1.89084511]
[1643699309459,7.69884564,2744.3,2744.1,2.82174]
[1643699309664,7.69884564,2744.3,2744.1,1.82174]
[1643699309867,3.72928695,2744.3,2744.2,1.90883564]
[1643699310761,3.72928695,2744.3,2744.1,1.82174]
[1643699310963,3.72928695,2744.3,2744.1,2.21087]
[1643699311164,0.39074226,2744.2,2744.1,2.21087]
[1643699312165,0.39074226,2744.2,2744.1,3.17140138]
[1643699312565,0.39074226,2744.2,2744.1,1.21087]
[1643699313115,1.93883937,2744.2,2743.6,1.82201]
[1643699313318,0.57294226,2744.2,2743.7,0.15466097]
[1643699314114,0.57294226,2744.2,2743.6,4.0331149]
[1643699314315,1.36816511,2744.1,2743.7,0.15479357]
[1643699314916,0.41621288,2744.0,2743.7,0.15479357]
[1643699317773,0.41621288,2744.0,2743.7,3.04969802]
[1643699317972,0.41621288,2744.0,2743.8,0.15479357]
[1643699318178,0.41621288,2744.0,2743.8,1.15479357]
[1643699318474,0.41621288,2744.0,2743.9,1.06580357]
[1643699319874,3.72928695,2744.3,2743.9,1.06580357]
[1643699320142,1.37167512,2744.2,2744.0,0.15479357]
[1643699321510,0.34558174,2744.1,2744.0,2.05942216]
[1643699321709,0.34558174,2744.1,2744.0,2.97032216]
[1643699321909,3.72928695,2744.3,2744.0,2.97032216]
[1643699322108,3.72928695,2744.3,2744.2,3.71088]
[1643699322310,5.10174119,2744.3,2744.2,1.06567357]
[1643699322509,5.10174334,2744.3,2744.2,1.06567357]
[1643699322810,4.08127767,2744.3,2744.2,1.06567357]
[1643699323219,2.68935712,2744.3,2744.2,1.97652967]
[1643699323415,2.68935712,2744.3,2744.2,2.97652967]
[1643699323618,2.68935712,2744.3,2744.2,3.80352967]
[1643699323815,2.68935712,2744.3,2744.2,6.10352967]
[1643699324021,0.001,2745.0,2744.5,0.9106]
[1643699324262,0.001,2745.0,2744.6,0.68179357]
[1643699324460,0.001,2745.0,2744.7,2.64516094]
[1643699324663,0.001,2745.0,2744.8,1.97594357]
[1643699324858,0.001,2745.0,2744.9,1.96022506]
[1643699325262,0.001,2745.0,2744.9,1.0]
[1643699325662,0.001,2745.0,2744.8,2.82115]
[1643699326666,0.001,2745.0,2744.8,1.82115]
[1643699327266,1.39273801,2745.0,2744.8,1.82115]
[1643699327467,1.39273801,2745.0,2744.9,0.3]
[1643699327667,1.39273801,2745.0,2744.8,2.82115]
[1643699327869,1.39173801,2744.9,2744.8,2.82115]
[1643699328111,1.39173801,2744.9,2744.8,1.95561662]
[1643699328313,1.39173801,2744.9,2744.8,1.82115]
[1643699328515,0.001,2745.0,2744.7,0.91057]
[1643699328712,0.001,2745.0,2744.7,0.91069]
[1643699328911,1.39273801,2745.0,2744.7,0.91069]
[1643699329514,2.31689323,2745.0,2744.7,0.91069]
[1643699329715,1.39173801,2744.9,2744.8,11.08250213]
[1643699329914,0.001,2745.0,2744.8,9.38250213]
[1643699330116,0.001,2745.0,2744.9,0.13443213]
[1643699330316,0.001,2745.0,2744.9,1.13443213]
[1643699330814,0.001,2745.0,2744.9,0.13443213]
[1643699331864,0.94670494,2744.9,2744.7,0.1821]
[1643699332065,1.12880494,2744.9,2744.5,0.13819997]
[1643699332261,0.1831,2745.0,2744.6,0.13402056]
[1643699332463,1.3904145,2744.9,2744.6,0.13402056]
[1643699333672,2.05913839,2744.9,2744.6,0.13402056]
[1643699333871,1.3904145,2744.8,2744.6,0.13402056]
[1643699334071,0.1831,2745.0,2744.6,0.13402056]
[1643699334270,1.39033201,2744.9,2744.6,0.13402056]
[1643699334675,0.1831,2745.0,2744.6,0.13402056]
[1643699335507,1.10608833,2745.0,2744.6,0.13402056]
[1643699335915,0.92398833,2745.0,2744.6,0.13402056]
[1643699336716,4.55,2744.9,2744.4,1.32029997]
[1643699337017,0.001,2745.0,2744.4,1.32029997]
[1643699337018,2.01240297,2744.8,2744.4,0.1821]
[1643699337217,0.49450297,2744.8,2744.4,0.1821]
[1643699337614,0.19450297,2744.8,2744.4,0.1821]
[1643699338014,0.86790834,2744.7,2744.4,0.1821]
[1643699338214,0.1821,2744.6,2743.9,1.1692]
[1643699339280,0.3809833,2744.0,2743.6,2.85434162]
[1643699339484,2.11789553,2743.9,2743.6,2.85434162]
[1643699339682,2.11789553,2743.9,2743.3,4.2106]
[1643699339980,2.11789553,2743.9,2743.2,3.6228]
[1643699340182,2.12671977,2743.9,2743.1,0.68352065]
[1643699340391,2.12671977,2743.9,2743.0,0.68352065]
[1643699340392,0.39116324,2743.5,2743.0,0.68352065]
[1643699340584,0.39116324,2743.5,2743.1,0.68352065]
[1643699340782,0.39116324,2743.5,2743.0,0.68352065]
[1643699341088,0.33153129,2744.4,2743.3,0.68352065]
[1643699341321,0.13819997,2744.4,2743.4,2.0]
[1643699341490,0.13819997,2744.4,2743.4,2.98352065]
[1643699341686,0.13819997,2744.4,2743.5,0.68352065]
[1643699341883,0.13819997,2744.4,2743.5,1.33996507]
[1643699342083,0.13819997,2744.4,2743.5,2.33996507]
[1643699342482,0.40930005,2744.3,2743.5,2.33996507]
[1643699342681,0.13819997,2744.4,2743.5,1.0]
[1643699342883,0.13819997,2744.4,2743.5,23.68996507]
[1643699343154,0.13819997,2744.4,2743.6,4.73857651]
[1643699343359,0.13819997,2744.4,2743.7,1.0]
[1643699343554,0.13819997,2744.4,2743.8,2.05496957]
[1643699344356,0.1822,2744.5,2743.8,2.05496957]
[1643699345256,0.1822,2744.5,2743.8,2.96590957]
[1643699347063,0.1822,2744.5,2743.8,3.62235399]
[1643699347264,0.1822,2744.5,2743.8,25.22676457]
[1643699347674,0.1822,2744.5,2743.9,0.64781415]
[1643699347867,0.61332543,2744.6,2744.1,0.91085]
[1643699349672,0.1821,2744.9,2744.2,1.89710365]
[1643699350912,0.001,2745.0,2744.2,2.07920365]
[1643699351118,0.4075032,2744.8,2744.2,1.89710365]
[1643699351918,0.001,2745.0,2744.2,1.89710365]
[1643699352117,0.1821,2744.9,2744.2,2.89710365]
[1643699352317,0.001,2745.0,2744.2,2.89710365]
[1643699352519,0.001,2745.0,2744.3,0.91079]
[1643699352720,0.001,2745.0,2744.4,2.24587458]
[1643699353119,0.001,2745.0,2744.4,3.24587458]
[1643699353323,0.001,2745.0,2744.4,3.64349038]
[1643699353935,0.001,2745.0,2744.4,3.24587458]
[1643699354119,0.001,2745.0,2744.4,3.42797458]
[1643699354578,5.71,2744.5,2744.4,3.42797458]
[1643699355383,5.71,2744.5,2744.4,1.1821]
[1643699356277,5.71,2744.5,2744.4,0.1821]
[1643699356577,5.71,2744.5,2744.4,3.11512891]
[1643699356777,5.71,2744.5,2744.4,3.22260345]
[1643699357480,5.71,2744.5,2744.4,2.22260345]
[1643699357678,5.71,2744.5,2744.4,0.28957454]
[1643699359123,5.71,2744.5,2744.4,2.16211628]
[1643699359318,5.71,2744.5,2744.4,2.98001628]
[1643699359920,5.70884861,2744.5,2744.4,1.98001628]
[1643699360420,5.70884861,2744.5,2744.4,2.98001628]
[1643699361423,5.70884861,2744.5,2744.4,1.10747454]
[1643699361623,5.70884861,2744.5,2744.4,0.10747454]
[1643699361872,5.89094861,2744.5,2744.4,0.10747454]
[1643699362071,5.70884861,2744.5,2744.4,0.10747454]
[1643699362274,7.12993596,2744.5,2744.4,0.10747454]
[1643699362870,5.70884861,2744.5,2744.4,0.10747454]
[1643699363077,7.14146822,2744.5,2744.4,0.10747454]
[1643699363273,5.70884861,2744.5,2744.4,0.10747454]
[1643699363474,7.14171608,2744.5,2744.4,0.10747454]
[1643699363675,5.70884861,2744.5,2744.4,0.10747454]
[1643699363877,7.14179266,2744.5,2744.4,0.10747454]
[1643699364076,5.70884861,2744.5,2744.4,0.10747454]
[1643699364276,7.14207675,2744.5,2744.4,0.10747454]
[1643699364525,5.70884861,2744.5,2744.4,0.10747454]
[1643699364677,7.14223124,2744.5,2744.4,0.10747454]
[1643699364979,5.70884861,2744.5,2744.4,0.10747454]
[1643699365378,7.14231829,2744.5,2744.4,0.10747454]
[1643699365616,7.14231324,2744.5,2744.4,0.10747454]
[1643699365818,5.70884861,2744.5,2744.4,0.10747454]
[1643699366019,7.14237717,2744.5,2744.4,0.10747454]
[1643699366219,5.70884861,2744.5,2744.4,0.10747454]
[1643699366644,7.14263636,2744.5,2744.4,0.10747454]
[1643699366820,5.70884861,2744.5,2744.4,0.10747454]
[1643699367020,7.142694,2744.5,2744.4,0.10747454]
[1643699367221,5.70884861,2744.5,2744.4,0.10747454]
[1643699367525,7.14278585,2744.5,2744.4,0.10747454]
[1643699367721,7.14278504,2744.5,2744.4,0.10747454]
[1643699367922,5.70884861,2744.5,2744.4,0.10747454]
[1643699368125,7.14283773,2744.5,2744.4,0.10747454]
[1643699368327,5.70884861,2744.5,2744.4,0.10747454]
[1643699368526,7.14290135,2744.5,2744.4,0.10747454]
[1643699368745,5.70884861,2744.5,2744.4,0.10747454]
[1643699369026,7.14295257,2744.5,2744.4,0.10747454]
[1643699369274,5.70884861,2744.5,2744.4,0.10747454]
[1643699369475,7.14046932,2744.5,2744.4,0.10747454]
[1643699369674,5.70639114,2744.5,2744.4,0.10747454]
[1643699369873,7.14052484,2744.5,2744.4,3.00926358]
[1643699370079,4.80256591,2744.5,2744.4,2.00926358]
[1643699370274,4.80256591,2744.5,2744.4,3.00926358]
[1643699370874,4.80256591,2744.5,2744.4,1.10747454]
[1643699371674,4.80256591,2744.5,2744.4,0.10747454]
[1643699373030,6.23725034,2744.5,2744.4,0.10747454]
[1643699378677,4.80256591,2744.5,2744.4,2.06692351]
[1643699378871,4.80256591,2744.5,2744.4,3.06692351]
[1643699379071,4.80256591,2744.5,2744.4,2.06692351]
[1643699379272,4.80256591,2744.5,2744.4,3.06692351]
[1643699379671,4.80256591,2744.5,2744.4,2.06692351]
[1643699382722,4.80256591,2744.5,2744.4,0.10747454]
[1643699383927,6.25526916,2744.5,2744.4,0.10747454]
[1643699384574,6.21635929,2744.5,2744.4,0.10747454]
[1643699386472,4.76365604,2744.5,2744.4,2.16066976]
[1643699386673,4.76365604,2744.5,2744.4,3.12586973]
[1643699386872,4.76365604,2744.5,2744.4,4.12586973]
[1643699387072,4.76365604,2744.5,2744.4,2.82586973]
[1643699387272,4.76365604,2744.5,2744.4,2.55477451]
[1643699387672,4.76254321,2744.5,2744.4,3.44793752]
[1643699387872,4.76254321,2744.5,2744.4,2.55477451]
[1643699388124,4.76254321,2744.5,2744.4,5.75477451]
[1643699388320,4.76254321,2744.5,2744.4,6.17562723]
[1643699388720,4.76254321,2744.5,2744.4,8.38880552]
[1643699389721,4.76254321,2744.5,2744.4,9.33645839]
[1643699389920,4.76254321,2744.5,2744.4,9.03645839]
[1643699390123,4.25456769,2744.5,2744.4,5.83645839]
[1643699391322,4.25456769,2744.5,2744.4,6.7296214]
[1643699391524,0.001,2745.0,2744.5,3.01497231]
[1643699391778,1.086331,2745.2,2745.1,0.7601289]
[1643699392074,1.086331,2745.2,2745.1,3.47473798]
[1643699392476,2.53871958,2745.2,2745.1,4.47473798]
[1643699392675,2.53871753,2745.2,2745.1,4.77473798]
[1643699392877,1.086331,2745.2,2745.1,4.77473798]
[1643699393581,1.086331,2745.2,2745.1,5.68512798]
[1643699393783,1.086331,2745.2,2745.1,5.38512798]
[1643699394381,1.09004598,2745.2,2745.1,5.38512798]
[1643699395618,1.09004598,2745.2,2745.1,3.30499344]
[1643699395821,2.90989794,2745.2,2745.1,0.86760344]
[1643699396020,3.09199794,2745.2,2745.1,0.86760344]
[1643699397022,3.09199794,2745.2,2745.1,0.10747454]
[1643699397421,2.90989794,2745.2,2745.1,0.10747454]
[1643699398735,3.09199794,2745.2,2745.1,0.10747454]
[1643699399040,2.90989794,2745.2,2745.1,0.10747454]
[1643699400983,2.55082025,2745.2,2745.1,0.10747454]
[1643699401183,1.09004598,2745.2,2745.1,0.10747454]
[1643699402185,1.43524278,2745.2,2745.1,0.10747454]
[1643699402390,1.61734278,2745.2,2745.1,0.10747454]
[1643699402588,1.43524278,2745.2,2745.1,0.10747454]
[1643699406033,2.89565396,2745.2,2745.1,0.10747454]
[1643699407568,1.43524278,2745.2,2745.1,0.10747454]
[1643699407974,1.09004598,2745.2,2745.1,0.10747454]
[1643699408375,1.09004598,2745.2,2745.1,1.01803454]
[1643699409378,2.98943544,2745.2,2745.1,1.01803454]
[1643699409576,2.98943544,2745.2,2745.1,0.10747454]
[1643699410180,1.52921287,2745.2,2745.1,0.10747454]
[1643699410616,3.00450447,2745.2,2745.1,0.10747454]
[1643699410823,1.52921287,2745.2,2745.1,0.10747454]
[1643699411017,1.37629159,2745.2,2745.1,0.10747454]
[1643699413124,2.85460271,2745.2,2745.1,0.10747454]
[1643699413323,1.37629159,2745.2,2745.1,0.10747454]
[1643699413729,3.15444843,2745.2,2745.1,0.10747454]
[1643699413926,2.85444843,2745.2,2745.1,0.10747454]
[1643699414123,1.37629159,2745.2,2745.1,0.10747454]
[1643699414714,1.37814908,2745.2,2745.1,0.10747454]
[1643699415775,1.67814908,2745.2,2745.1,0.10747454]
[1643699415976,3.15668015,2745.2,2745.1,0.10747454]
[1643699416176,2.85668015,2745.2,2745.1,0.10747454]
[1643699416579,1.37814908,2745.2,2745.1,2.00235019]
[1643699416776,1.37814908,2745.2,2745.1,0.10747454]
[1643699417780,1.67814908,2745.2,2745.1,0.10747454]
[1643699418223,1.67814908,2745.2,2745.1,0.07677298]
[1643699418224,3.33888807,2745.2,2745.1,0.07677298]
[1643699418423,5.33888807,2745.2,2744.1,3.6407702]
[1643699418625,5.33888807,2745.2,2743.7,2.73187]
[1643699418626,0.83282704,2744.3,2743.7,0.9089749]
[1643699418832,0.1822,2744.2,2743.9,0.145954]
[1643699419227,0.1822,2744.2,2743.5,0.9089749]
[1643699419522,0.1822,2744.2,2743.5,1.8200949]
[1643699419735,0.32348862,2744.1,2743.6,0.1822]
[1643699420925,0.32348862,2744.1,2743.7,0.91106]
[1643699421127,0.32348862,2744.1,2743.8,0.1822]
[1643699421326,0.32348862,2744.1,2743.7,0.91106]
[1643699421972,0.32348862,2744.1,2743.6,0.1822]
[1643699423083,0.32348862,2744.1,2743.8,0.9089749]
[1643699423879,0.32348862,2744.1,2743.9,0.9089749]
[1643699424079,0.32348862,2744.1,2744.0,5.3822]
[1643699424279,0.32348862,2744.1,2744.0,6.3822]
[1643699425919,0.32348862,2744.1,2744.0,1.1822]
[1643699426134,0.32348862,2744.1,2744.0,0.1822]
[1643699429588,0.31747506,2744.1,2744.0,0.1822]
[1643699430692,0.31747506,2744.1,2743.8,2.50398034]
[1643699430893,0.31747506,2744.1,2743.9,0.68222034]
[1643699431090,0.44957989,2744.1,2743.9,0.68222034]
[1643699431891,0.44957989,2744.1,2743.8,2.50398034]
[1643699432291,0.44957989,2744.1,2743.8,0.68222034]
[1643699432922,0.44957989,2744.1,2743.7,2.7328626]
[1643699432923,0.44957989,2744.1,2743.7,3.41508294]
[1643699433726,0.44957989,2744.1,2743.8,1.0]
[1643699434729,0.44957989,2744.1,2743.8,1.68222034]
[1643699435731,0.44957989,2744.1,2743.8,3.58580778]
[1643699435932,2.00423,2744.3,2744.1,0.06042011]
[1643699436233,0.36310216,2744.2,2744.1,0.06042011]
[1643699438977,0.36310216,2744.2,2744.1,0.13720965]
[1643699448025,0.30268205,2744.2,2744.1,0.07678954]
[1643699448229,1.21375205,2744.2,2743.9,0.07678954]
[1643699448428,0.1822,2744.1,2743.9,0.07678954]
[1643699449729,1.21375205,2744.2,2743.9,0.07678954]
[1643699451131,0.80564059,2744.2,2743.9,0.07678954]
[1643699451533,0.80564059,2744.2,2743.9,0.98780954]
[1643699451797,0.80564059,2744.2,2744.0,0.07678954]
[1643699453405,0.85859119,2744.1,2743.8,1.68222034]
[1643699453606,2.68072119,2744.1,2743.9,0.07679065]
[1643699459481,2.86292119,2744.1,2743.9,0.07679065]
[1643699460075,1.52372299,2744.0,2743.9,0.07679065]
[1643699460478,1.52372299,2744.0,2743.6,0.86442034]
[1643699460682,1.52372299,2744.0,2743.5,0.68222034]
[1643699460683,1.70592299,2744.0,2743.5,0.68222034]
[1643699460878,1.82261,2743.9,2743.5,0.68222034]
[1643699461081,0.1822,2743.8,2743.4,0.68222034]
[1643699461280,1.09349,2743.8,2743.4,0.68222034]
[1643699461482,0.379485,2743.7,2743.4,0.68222034]
[1643699461681,0.379485,2743.7,2743.3,0.146003]
[1643699461682,0.379485,2743.7,2743.5,0.68222034]
[1643699461884,0.1822,2743.6,2743.5,0.68222034]
[1643699462082,0.561685,2743.7,2743.5,0.68222034]
[1643699462482,2.384305,2743.7,2743.4,0.68222034]
[1643699463128,2.384305,2743.7,2743.3,0.82822334]
[1643699463753,0.3,2743.6,2743.3,0.82822334]
[1643699464730,2.384305,2743.7,2743.4,0.68222034]
[1643699465331,2.384305,2743.7,2743.3,0.82822334]
[1643699465632,2.384305,2743.7,2743.4,0.68222034]
[1643699466129,2.384305,2743.7,2743.3,0.82822334]
[1643699466329,2.202105,2743.7,2743.3,0.82822334]
[1643699470524,2.202105,2743.7,2743.4,0.91119]
[1643699470724,2.202105,2743.7,2743.5,0.86442034]
[1643699470925,2.202105,2743.7,2743.6,6.03222034]
[1643699471123,1.47544987,2743.7,2743.6,0.86442034]
[1643699471826,1.47544987,2743.7,2743.6,0.1822]
[1643699472827,0.379485,2743.7,2743.5,0.1822]
[1643699473026,0.379485,2743.7,2743.5,1.0911749]
[1643699473232,0.379485,2743.7,2743.5,3.9132449]
[1643699473630,0.91129,2743.8,2743.5,3.9132449]
[1643699473836,0.56065512,2744.2,2743.7,21.35]
[1643699474037,0.56065512,2744.2,2744.0,0.68232965]
[1643699474276,0.56065512,2744.2,2744.1,6.71033333]
[1643699474477,0.56065512,2744.2,2744.1,7.01033333]
[1643699474679,0.55731899,2744.2,2744.1,3.91033333]
[1643699474982,0.55731899,2744.2,2744.1,3.61033333]
[1643699475174,0.55731899,2744.2,2744.1,4.52112333]
[1643699475383,0.55731899,2744.2,2744.1,4.82112333]